[Event "Chinese Championship-B Men 2024"]
[Site "Liaocheng"]
[Date "2024.04.24"]
[Round "7.14"]
[White "Zhou, Yuxu"]
[Black "Chan, Wang Ip Boris"]
[Result "1/2-1/2"]
[WhiteElo "1789"]
[BlackElo "2011"]
[PlyCount "64"]
[EventDate "2024.04.24"]
[EventType "swiss"]
[EventCountry "CHN"]
[TimeControl "5400+30"]

1. d4 {[%emt 0:00:04]} Nf6 {[%emt 0:00:12]} 2. c4 {[%emt 0:00:04]} e6 {[%emt 0:00:08]} 3. Nf3 {[%emt 0:00:04]} b6 {[%emt 0:00:56]} 4. g3 {[%emt 0:00:04]} Bb7 {[%emt 0:00:03]} 5. Bg2 {[%emt 0:00:04]} Be7 {[%emt 0:00:03]} 6. O-O {[%emt 0:00:06]} O-O {[%emt 0:00:02]} 7. Nc3 {[%emt 0:00:04]} Ne4 {[%emt 0:00:08]} 8. Bd2 {[%emt 0:00:05]} d6 {[%emt 0:00:05]} 9. d5 {[%emt 0:00:42]} Nxd2 {[%emt 0:01:20]} 10. Nxd2 {[%emt 0:00:05]} e5 {[%emt 0:00:28]} 11. b4 {[%emt 0:00:08]} a5 {[%emt 0:04:26]} 12. bxa5 {[%emt 0:00:17]} Rxa5 {[%emt 0:00:05]} 13. Nb3 {[%emt 0:00:14]} Ra8 {[%emt 0:01:21]} 14. a4 {[%emt 0:12:57]} Nd7 {[%emt 0:22:42]} 15. a5 {[%emt 0:11:35]} Ba6 {[%emt 0:07:56]} 16. axb6 {[%emt 0:03:36]} Bxc4 {[%emt 0:04:40]} 17. Na5 {[%emt 0:27:03]} Nxb6 {[%emt 0:01:56]} 18. Nc6 {[%emt 0:05:04]} Qd7 {[%emt 0:01:40]} 19. Qc2 {[%emt 0:02:47]} g6 {[%emt 0:08:05]} 20. Rfb1 {[%emt 0:04:30]} Rxa1 {[%emt 0:13:15]} 21. Rxa1 {[%emt 0:00:05]} Ra8 {[%emt 0:00:02]} 22. Rxa8+ {[%emt 0:03:16]} Nxa8 {[%emt 0:31:57]} 23. Na4 {[%emt 0:03:04]} Bb5 {[%emt 0:00:00]} 24. Nc3 {[%emt 0:03:17]} Bc4 {[%emt 0:00:00]} 25. Na4 {[%emt 0:12:28]} Bb5 {[%emt 0:00:00]} 26. Nc3 {[%emt 0:00:09]} Bc4 {[%emt 0:00:00]} 27. Bf3 {[%emt 0:02:54]} Nb6 {[%emt 0:00:00]} 28. Na4 {[%emt 0:00:39]} Bb5 {[%emt 0:00:00]} 29. Nxb6 {[%emt 0:00:08]} cxb6 {[%emt 0:00:00]} 30. Qb3 {[%emt 0:01:17]} Bxc6 {[%emt 0:00:00]} 31. dxc6 {[%emt 0:00:07]} Qc7 {[%emt 0:00:00]} 32. Bd5 {[%emt 0:00:20]} Bd8 {[%emt 0:00:00]} 1/2-1/2

[Event "Chinese Championship-B Men 2024"]
[Site "Liaocheng"]
[Date "2024.04.24"]
[Round "7.15"]
[White "Zhang, Zhi"]
[Black "He, Ping"]
[Result "1-0"]
[WhiteElo "1987"]
[BlackElo "1828"]
[PlyCount "79"]
[EventDate "2024.04.24"]
[EventType "swiss"]
[EventCountry "CHN"]
[TimeControl "5400+30"]

1. e4 {[%emt 0:00:05]} e5 {[%emt 0:00:33]} 2. Nf3 {[%emt 0:00:07]} Nc6 {[%emt 0:00:05]} 3. Nc3 {[%emt 0:00:06]} Nf6 {[%emt 0:00:15]} 4. Bb5 {[%emt 0:00:07]} Bb4 {[%emt 0:00:51]} 5. O-O {[%emt 0:00:53]} O-O {[%emt 0:00:59]} 6. Bxc6 {[%emt 0:01:18]} bxc6 {[%emt 0:02:10]} 7. Nxe5 {[%emt 0:00:00]} Re8 {[%emt 0:00:56]} 8. Nd3 {[%emt 0:00:17]} Bxc3 {[%emt 0:00:45]} 9. dxc3 {[%emt 0:00:03]} Nxe4 {[%emt 0:03:34]} 10. Re1 {[%emt 0:06:01]} d5 {[%emt 0:09:15]} 11. f3 {[%emt 0:02:42]} Nd6 {[%emt 0:02:07]} 12. Be3 {[%emt 0:03:23]} Bf5 {[%emt 0:02:03]} 13. Bd4 {[%emt 0:04:01]} Rxe1+ {[%emt 0:08:31]} 14. Qxe1 {[%emt 0:00:24]} Bxd3 {[%emt 0:01:06]} 15. cxd3 {[%emt 0:00:04]} Qg5 {[%emt 0:01:55]} 16. a4 {[%emt 0:07:17]} h5 {[%emt 0:03:02]} 17. Qf2 {[%emt 0:14:49]} a6 {[%emt 0:01:40]} 18. Re1 {[%emt 0:07:10]} Re8 {[%emt 0:02:39]} 19. Rxe8+ {[%emt 0:00:55]} Nxe8 {[%emt 0:00:05]} 20. Qe3 {[%emt 0:00:28]} Qxe3+ {[%emt 0:00:42]} 21. Bxe3 {[%emt 0:00:02]} f6 {[%emt 0:11:55]} 22. g4 {[%emt 0:03:45]} hxg4 23. fxg4 {[%emt 0:00:02]} g5 {[%emt 0:04:07]} 24. b4 {[%emt 0:02:09]} Ng7 {[%emt 0:01:03]} 25. c4 {[%emt 0:05:23]} dxc4 {[%emt 0:03:49]} 26. dxc4 {[%emt 0:00:02]} Ne8 {[%emt 0:02:08]} 27. Bc5 {[%emt 0:13:02]} Kf7 {[%emt 0:00:44]} 28. a5 {[%emt 0:00:28]} Ke6 {[%emt 0:01:21]} 29. b5 {[%emt 0:00:34]} cxb5 {[%emt 0:00:22]} 30. cxb5 {[%emt 0:00:01]} Kd7 {[%emt 0:25:16]} 31. bxa6 {[%emt 0:00:08]} Kc8 {[%emt 0:00:04]} 32. Kg2 {[%emt 0:03:50]} Kb8 {[%emt 0:01:35]} 33. Kf3 {[%emt 0:00:43]} Ng7 {[%emt 0:00:41]} 34. Ke4 {[%emt 0:00:29]} Ne6 {[%emt 0:00:33]} 35. Be3 {[%emt 0:00:03]} c6 {[%emt 0:01:48]} 36. Bd4 {[%emt 0:03:08]} c5 {[%emt 0:03:11]} 37. Bxf6 {[%emt 0:00:45]} Ka7 {[%emt 0:00:04]} 38. Kd5 {[%emt 0:00:39]} Nf8 {[%emt 0:00:48]} 39. Bxg5 {[%emt 0:00:35]} Kxa6 {[%emt 0:00:07]} 40. Be7 {[%emt 0:00:19]} 1-0

[Event "Chinese Championship-B Men 2024"]
[Site "Liaocheng"]
[Date "2024.04.24"]
[Round "8.1"]
[White "Xie, Kaifan"]
[Black "Zhang, Di"]
[Result "1/2-1/2"]
[WhiteElo "2393"]
[BlackElo "2303"]
[PlyCount "42"]
[EventDate "2024.04.24"]
[EventType "swiss"]
[EventCountry "CHN"]
[TimeControl "5400+30"]

1. d4 {[%emt 0:02:21]} d5 {[%emt 0:00:09]} 2. c4 {[%emt 0:00:14]} c6 {[%emt 0:00:04]} 3. Nf3 {[%emt 0:01:17]} Nf6 {[%emt 0:00:07]} 4. Nc3 {[%emt 0:00:06]} g6 {[%emt 0:00:04]} 5. h3 {[%emt 0:01:32]} Bg7 {[%emt 0:13:49]} 6. cxd5 {[%emt 0:00:07]} cxd5 {[%emt 0:00:04]} 7. Bf4 {[%emt 0:00:07]} Nc6 {[%emt 0:00:27]} 8. e3 {[%emt 0:00:08]} O-O {[%emt 0:02:58]} 9. Be2 {[%emt 0:01:16]} Ne4 {[%emt 0:01:07]} 10. Rc1 {[%emt 0:24:40]} Be6 {[%emt 0:04:47]} 11. O-O {[%emt 0:04:04]} f6 {[%emt 0:07:47]} 12. Qb3 {[%emt 0:06:18]} Qd7 {[%emt 0:08:08]} 13. Na4 {[%emt 0:11:12]} Rac8 {[%emt 0:06:09]} 14. Nc5 {[%emt 0:05:55]} Nxc5 {[%emt 0:00:22]} 15. Rxc5 {[%emt 0:00:02]} b6 {[%emt 0:01:21]} 16. Rcc1 {[%emt 0:00:48]} Na5 {[%emt 0:04:40]} 17. Qa3 {[%emt 0:04:58]} Nc4 {[%emt 0:08:39]} 18. Qa6 {[%emt 0:01:15]} Nd6 {[%emt 0:11:03]} 19. Qa3 {[%emt 0:14:35]} Nc4 {[%emt 0:00:49]} 20. Qa6 {[%emt 0:00:30]} Nd6 {[%emt 0:00:02]} 21. Qa3 {[%emt 0:09:01]} Nc4 {[%emt 0:00:06]} 1/2-1/2

[Event "Chinese Championship-B Men 2024"]
[Site "Liaocheng"]
[Date "2024.04.24"]
[Round "8.2"]
[White "Zhang, Ziji"]
[Black "Wu, Yixing"]
[Result "1-0"]
[WhiteElo "2392"]
[BlackElo "2348"]
[PlyCount "65"]
[EventDate "2024.04.24"]
[EventType "swiss"]
[EventCountry "CHN"]
[TimeControl "5400+30"]

1. d4 {[%emt 0:00:11]} Nf6 {[%emt 0:00:05]} 2. Nf3 {[%emt 0:00:16]} e6 {[%emt 0:00:13]} 3. e3 {[%emt 0:01:06]} d5 {[%emt 0:00:38]} 4. Bd3 {[%emt 0:00:13]} c5 {[%emt 0:01:05]} 5. b3 {[%emt 0:00:49]} Nc6 {[%emt 0:00:43]} 6. O-O {[%emt 0:01:05]} Be7 {[%emt 0:00:46]} 7. Bb2 {[%emt 0:00:56]} O-O {[%emt 0:00:14]} 8. Nbd2 {[%emt 0:00:32]} b6 {[%emt 0:00:26]} 9. a3 {[%emt 0:01:34]} Bb7 {[%emt 0:00:51]} 10. Qe2 {[%emt 0:00:22]} Rc8 {[%emt 0:01:32]} 11. Rad1 {[%emt 0:00:28]} Qc7 {[%emt 0:03:55]} 12. dxc5 {[%emt 0:08:11]} bxc5 {[%emt 0:00:05]} 13. e4 {[%emt 0:00:19]} d4 {[%emt 0:04:03]} 14. Nc4 {[%emt 0:01:00]} e5 {[%emt 0:02:21]} 15. Nh4 {[%emt 0:01:48]} g6 {[%emt 0:00:53]} 16. Bc1 {[%emt 0:03:28]} Na5 {[%emt 0:09:22]} 17. Nxa5 {[%emt 0:15:48]} Qxa5 {[%emt 0:00:05]} 18. f4 {[%emt 0:00:46]} exf4 {[%emt 0:11:42]} 19. Rxf4 {[%emt 0:01:37]} Rce8 {[%emt 0:07:22]} 20. Bb5 {[%emt 0:19:27]} d3 {[%emt 0:13:36]} 21. Bxd3 {[%emt 0:01:34]} Nh5 {[%emt 0:00:06]} 22. Rg4 {[%emt 0:13:21]} c4 {[%emt 0:02:49]} 23. Bxc4 {[%emt 0:01:40]} Bc8 {[%emt 0:00:03]} 24. Nxg6 {[%emt 0:04:43]} Bc5+ {[%emt 0:12:30]} 25. Kh1 {[%emt 0:00:08]} Bxg4 {[%emt 0:00:06]} 26. Qxg4 {[%emt 0:00:26]} Nf6 {[%emt 0:00:20]} 27. Qg5 {[%emt 0:02:44]} Nxe4 {[%emt 0:00:48]} 28. Ne7+ {[%emt 0:00:32]} Kh8 {[%emt 0:00:03]} 29. Bb2+ {[%emt 0:00:13]} f6 {[%emt 0:00:10]} 30. Ng6+ {[%emt 0:00:08]} Kg7 {[%emt 0:00:05]} 31. Rd7+ {[%emt 0:00:03]} Re7 {[%emt 0:02:58]} 32. Rxe7+ {[%emt 0:00:08]} Bxe7 {[%emt 0:00:13]} 33. Qxa5 {[%emt 0:00:05]} 1-0

[Event "Chinese Championship-B Men 2024"]
[Site "Liaocheng"]
[Date "2024.04.24"]
[Round "8.3"]
[White "Jiang, Qinyu"]
[Black "Chen, Zimu(Js)"]
[Result "1/2-1/2"]
[WhiteElo "2319"]
[BlackElo "2075"]
[PlyCount "84"]
[EventDate "2024.04.24"]
[EventType "swiss"]
[EventCountry "CHN"]
[TimeControl "5400+30"]

1. e4 {[%emt 0:00:00]} d6 {[%emt 0:00:09]} 2. d4 {[%emt 0:00:03]} Nf6 {[%emt 0:00:06]} 3. Nc3 {[%emt 0:00:00]} e5 {[%emt 0:00:11]} 4. Nf3 {[%emt 0:00:01]} Nc6 {[%emt 0:00:07]} 5. h3 {[%emt 0:14:44]} exd4 {[%emt 0:02:04]} 6. Nxd4 {[%emt 0:00:01]} Be7 {[%emt 0:07:25]} 7. g4 {[%emt 0:15:20]} O-O {[%emt 0:06:51]} 8. Bg2 {[%emt 0:03:09]} Nxd4 {[%emt 0:05:50]} 9. Qxd4 {[%emt 0:00:02]} c6 {[%emt 0:00:42]} 10. Bf4 {[%emt 0:09:42]} Qa5 {[%emt 0:06:23]} 11. Bxd6 {[%emt 0:05:40]} Bxd6 {[%emt 0:05:03]} 12. Qxd6 {[%emt 0:00:01]} Rd8 {[%emt 0:01:01]} 13. Qf4 {[%emt 0:07:14]} Qb4 {[%emt 0:00:35]} 14. Rb1 {[%emt 0:01:34]} Qc4 {[%emt 0:00:56]} 15. Bf1 {[%emt 0:00:54]} Qc5 {[%emt 0:12:08]} 16. Bd3 {[%emt 0:03:07]} Be6 {[%emt 0:01:47]} 17. O-O {[%emt 0:00:22]} h5 {[%emt 0:00:06]} 18. g5 {[%emt 0:07:18]} Nd7 {[%emt 0:00:33]} 19. Kg2 {[%emt 0:04:40]} Ne5 {[%emt 0:01:36]} 20. Rbd1 {[%emt 0:00:22]} b5 {[%emt 0:06:15]} 21. Qg3 {[%emt 0:02:26]} b4 {[%emt 0:00:29]} 22. Na4 {[%emt 0:00:10]} Qd4 {[%emt 0:02:00]} 23. b3 {[%emt 0:01:24]} c5 {[%emt 0:04:10]} 24. Rfe1 {[%emt 0:02:52]} h4 {[%emt 0:04:36]} 25. Qxh4 {[%emt 0:03:24]} c4 {[%emt 0:03:58]} 26. Bxc4 {[%emt 0:08:02]} Qxd1 {[%emt 0:00:06]} 27. Rxd1 {[%emt 0:00:02]} Rxd1 {[%emt 0:00:06]} 28. Qh5 {[%emt 0:01:31]} Rd6 {[%emt 0:00:05]} 29. Bxe6 {[%emt 0:04:37]} Rxe6 {[%emt 0:00:06]} 30. Nc5 {[%emt 0:00:01]} Rd6 {[%emt 0:01:21]} 31. Nd3 {[%emt 0:01:35]} Nxd3 {[%emt 0:02:53]} 32. cxd3 {[%emt 0:00:01]} Rxd3 {[%emt 0:00:15]} 33. e5 {[%emt 0:01:23]} Rd5 {[%emt 0:02:38]} 34. g6 fxg6 {[%emt 0:00:18]} 35. Qf3 {[%emt 0:00:14]} Rad8 {[%emt 0:01:21]} 36. Qe4 {[%emt 0:00:14]} a5 {[%emt 0:00:55]} 37. h4 {[%emt 0:03:26]} Rc5 {[%emt 0:04:10]} 38. e6 {[%emt 0:01:52]} Rf5 {[%emt 0:03:18]} 39. h5 {[%emt 0:00:15]} Rd2 {[%emt 0:02:10]} 40. hxg6 {[%emt 0:01:27]} Rfxf2+ {[%emt 0:00:04]} 41. Kg3 {[%emt 0:00:08]} Rg2+ {[%emt 0:00:32]} 42. Kh3 {[%emt 0:01:09]} Rh2+ {[%emt 0:00:12]} 1/2-1/2

[Event "Chinese Championship-B Men 2024"]
[Site "Liaocheng"]
[Date "2024.04.24"]
[Round "8.4"]
[White "Wang, Hao B"]
[Black "Xi, Qi"]
[Result "1/2-1/2"]
[WhiteElo "2170"]
[BlackElo "2217"]
[PlyCount "84"]
[EventDate "2024.04.24"]
[EventType "swiss"]
[EventCountry "CHN"]
[TimeControl "5400+30"]

1. d4 {[%emt 0:00:03]} d5 {[%emt 0:02:09]} 2. c4 {[%emt 0:00:08]} c6 {[%emt 0:00:13]} 3. Nf3 {[%emt 0:00:24]} Nf6 {[%emt 0:00:11]} 4. Nc3 {[%emt 0:00:24]} e6 {[%emt 0:00:07]} 5. Qd3 {[%emt 0:00:26]} dxc4 {[%emt 0:02:11]} 6. Qxc4 {[%emt 0:00:19]} b5 {[%emt 0:00:06]} 7. Qd3 {[%emt 0:01:49]} Nbd7 {[%emt 0:05:39]} 8. g3 {[%emt 0:02:58]} Bb7 {[%emt 0:04:09]} 9. Bg2 {[%emt 0:00:17]} a6 {[%emt 0:00:59]} 10. Ng5 {[%emt 0:09:14]} Qb6 {[%emt 0:16:21]} 11. O-O {[%emt 0:10:14]} Be7 {[%emt 0:14:45]} 12. a4 {[%emt 0:03:37]} O-O {[%emt 0:03:23]} 13. Be3 {[%emt 0:00:22]} h6 {[%emt 0:04:07]} 14. d5 {[%emt 0:05:27]} Nc5 {[%emt 0:04:07]} 15. d6 {[%emt 0:03:36]} Nxd3 {[%emt 0:01:51]} 16. Bxb6 {[%emt 0:00:05]} Bd8 {[%emt 0:00:37]} 17. Bxd8 {[%emt 0:00:53]} Raxd8 {[%emt 0:00:55]} 18. Nge4 {[%emt 0:00:16]} Nxe4 {[%emt 0:01:18]} 19. Nxe4 {[%emt 0:00:08]} Nxb2 {[%emt 0:00:36]} 20. Nc5 {[%emt 0:07:53]} Bc8 {[%emt 0:06:04]} 21. Bxc6 {[%emt 0:00:11]} Nxa4 {[%emt 0:03:21]} 22. Rxa4 {[%emt 0:01:13]} Rxd6 {[%emt 0:00:41]} 23. Bxb5 {[%emt 0:00:06]} axb5 {[%emt 0:00:04]} 24. Rb4 {[%emt 0:00:04]} Rd5 {[%emt 0:05:49]} 25. Rc1 {[%emt 0:00:07]} Rfd8 {[%emt 0:03:00]} 26. Rxb5 {[%emt 0:00:28]} Ba6 {[%emt 0:01:17]} 27. Rb2 {[%emt 0:00:05]} Rc8 {[%emt 0:00:32]} 28. Ra1 {[%emt 0:00:11]} Bxe2 {[%emt 0:01:07]} 29. Nxe6 {[%emt 0:00:05]} Bf3 {[%emt 0:01:19]} 30. Nf4 {[%emt 0:00:15]} Rdc5 {[%emt 0:01:13]} 31. Re1 {[%emt 0:00:25]} g5 {[%emt 0:00:54]} 32. Ng2 {[%emt 0:01:41]} Kg7 {[%emt 0:00:30]} 33. Rb3 {[%emt 0:00:12]} Ba8 {[%emt 0:01:25]} 34. h4 {[%emt 0:02:50]} Rd8 {[%emt 0:02:25]} 35. Rbe3 {[%emt 0:01:51]} Kg6 {[%emt 0:01:47]} 36. hxg5 {[%emt 0:00:47]} hxg5 {[%emt 0:00:07]} 37. Re8 {[%emt 0:00:06]} Rxe8 {[%emt 0:01:00]} 38. Rxe8 {[%emt 0:00:06]} Rc1+ {[%emt 0:00:06]} 39. Kh2 {[%emt 0:00:54]} Bf3 {[%emt 0:00:42]} 40. Re3 {[%emt 0:00:33]} Bc6 {[%emt 0:00:18]} 41. g4 {[%emt 0:00:50]} Rf1 {[%emt 0:02:32]} 42. Kg3 {[%emt 0:00:19]} Bxg2 {[%emt 0:11:33]} 1/2-1/2

[Event "Chinese Championship-B Men 2024"]
[Site "Liaocheng"]
[Date "2024.04.24"]
[Round "8.5"]
[White "Chen, Hongsen"]
[Black "Meng, Yihan"]
[Result "1/2-1/2"]
[WhiteElo "2171"]
[BlackElo "2042"]
[PlyCount "61"]
[EventDate "2024.04.24"]
[EventType "swiss"]
[EventCountry "CHN"]
[TimeControl "5400+30"]

1. Nf3 {[%emt 0:04:00]} d5 {[%emt 0:00:05]} 2. e3 {[%emt 0:00:22]} Nf6 {[%emt 0:00:07]} 3. b3 {[%emt 0:00:24]} Bf5 {[%emt 0:00:29]} 4. Bb2 {[%emt 0:00:22]} e6 {[%emt 0:00:11]} 5. Be2 {[%emt 0:00:31]} h6 {[%emt 0:00:42]} 6. O-O {[%emt 0:00:26]} c6 {[%emt 0:00:53]} 7. d3 {[%emt 0:02:09]} Be7 {[%emt 0:00:29]} 8. Nbd2 {[%emt 0:00:09]} O-O {[%emt 0:00:08]} 9. Re1 {[%emt 0:07:49]} Bh7 {[%emt 0:02:58]} 10. Ne5 {[%emt 0:01:57]} Nfd7 {[%emt 0:02:22]} 11. f4 {[%emt 0:01:48]} Nxe5 {[%emt 0:00:15]} 12. fxe5 {[%emt 0:00:07]} c5 {[%emt 0:05:02]} 13. d4 {[%emt 0:02:09]} Nc6 {[%emt 0:02:16]} 14. a3 {[%emt 0:01:37]} Qb6 {[%emt 0:02:07]} 15. Nf3 {[%emt 0:03:44]} Rac8 {[%emt 0:04:22]} 16. Bd3 {[%emt 0:03:07]} Bxd3 {[%emt 0:16:12]} 17. Qxd3 {[%emt 0:02:58]} a5 {[%emt 0:04:01]} 18. Rab1 {[%emt 0:02:05]} a4 {[%emt 0:05:00]} 19. dxc5 {[%emt 0:03:14]} Qxc5 {[%emt 0:01:55]} 20. bxa4 {[%emt 0:03:44]} Na5 {[%emt 0:13:08]} 21. Re2 {[%emt 0:08:21]} Qc4 {[%emt 0:04:22]} 22. Bd4 {[%emt 0:07:25]} Qxa4 {[%emt 0:00:27]} 23. Qb5 {[%emt 0:01:39]} Qxb5 {[%emt 0:09:09]} 24. Rxb5 {[%emt 0:00:07]} Ra8 {[%emt 0:00:09]} 25. a4 {[%emt 0:02:04]} Nc6 {[%emt 0:08:45]} 26. c3 {[%emt 0:01:28]} Rxa4 {[%emt 0:01:38]} 27. Rxb7 {[%emt 0:01:37]} Raa8 {[%emt 0:00:46]} 28. Reb2 {[%emt 0:01:03]} Rfb8 {[%emt 0:01:13]} 29. Kf2 {[%emt 0:01:34]} Kf8 {[%emt 0:00:21]} 30. g4 {[%emt 0:00:11]} Ke8 {[%emt 0:01:21]} 31. h4 {[%emt 0:00:31]} 1/2-1/2

[Event "Chinese Championship-B Men 2024"]
[Site "Liaocheng"]
[Date "2024.04.24"]
[Round "8.6"]
[White "Jin, Yueheng"]
[Black "Liu, Bei"]
[Result "1/2-1/2"]
[WhiteElo "2407"]
[BlackElo "1964"]
[PlyCount "95"]
[EventDate "2024.04.24"]
[EventType "swiss"]
[EventCountry "CHN"]
[TimeControl "5400+30"]

1. d4 {[%emt 0:00:06]} d5 {[%emt 0:00:08]} 2. c4 {[%emt 0:00:04]} c6 {[%emt 0:00:26]} 3. Nf3 {[%emt 0:00:04]} Nf6 {[%emt 0:00:04]} 4. g3 {[%emt 0:00:03]} g6 {[%emt 0:00:14]} 5. cxd5 {[%emt 0:00:07]} cxd5 {[%emt 0:00:05]} 6. Bg2 {[%emt 0:00:04]} Bg7 {[%emt 0:00:07]} 7. Nc3 {[%emt 0:00:06]} Nc6 {[%emt 0:00:06]} 8. O-O {[%emt 0:00:06]} O-O {[%emt 0:00:04]} 9. Ne5 {[%emt 0:00:02]} Bf5 {[%emt 0:00:18]} 10. Bf4 {[%emt 0:00:05]} Rc8 {[%emt 0:00:16]} 11. Rc1 {[%emt 0:01:07]} Qb6 {[%emt 0:02:00]} 12. Na4 {[%emt 0:08:33]} Qa6 {[%emt 0:06:03]} 13. Nxc6 {[%emt 0:11:24]} Rxc6 {[%emt 0:00:20]} 14. Rxc6 {[%emt 0:00:12]} Qxc6 {[%emt 0:00:26]} 15. Nc3 {[%emt 0:01:17]} Ne4 {[%emt 0:02:46]} 16. Qb3 {[%emt 0:02:04]} Nxc3 {[%emt 0:14:23]} 17. bxc3 {[%emt 0:00:05]} Be6 {[%emt 0:04:25]} 18. Qa3 {[%emt 0:05:56]} b6 {[%emt 0:02:49]} 19. Qxa7 {[%emt 0:08:50]} Qxc3 {[%emt 0:00:36]} 20. e3 {[%emt 0:00:20]} Qb2 {[%emt 0:04:46]} 21. Qxe7 {[%emt 0:14:59]} Qxa2 {[%emt 0:00:39]} 22. Qb4 {[%emt 0:00:43]} Qa5 {[%emt 0:05:11]} 23. Rb1 {[%emt 0:00:13]} Rc8 {[%emt 0:14:45]} 24. Bf1 {[%emt 0:00:18]} Qxb4 {[%emt 0:01:05]} 25. Rxb4 {[%emt 0:00:01]} Rc6 {[%emt 0:00:09]} 26. Ra4 {[%emt 0:01:04]} h5 {[%emt 0:06:38]} 27. Ra8+ {[%emt 0:07:13]} Kh7 {[%emt 0:00:03]} 28. Rb8 {[%emt 0:10:36]} Bh6 {[%emt 0:17:16]} 29. Be5 {[%emt 0:00:43]} Bg7 {[%emt 0:00:07]} 30. Bf4 {[%emt 0:00:04]} Bh6 {[%emt 0:00:04]} 31. Bb5 {[%emt 0:01:11]} Rc1+ {[%emt 0:00:10]} 32. Kg2 {[%emt 0:00:02]} Bxf4 {[%emt 0:00:38]} 33. gxf4 {[%emt 0:00:02]} h4 {[%emt 0:02:12]} 34. h3 {[%emt 0:01:57]} Bf5 {[%emt 0:01:08]} 35. Be2 {[%emt 0:00:12]} Rb1 {[%emt 0:02:34]} 36. Bf3 {[%emt 0:00:16]} Rb5 {[%emt 0:01:26]} 37. Rd8 {[%emt 0:00:07]} Be6 {[%emt 0:00:22]} 38. Bg4 {[%emt 0:00:20]} f5 {[%emt 0:02:47]} 39. Be2 {[%emt 0:01:36]} Rb2 {[%emt 0:00:30]} 40. Bf3 {[%emt 0:08:22]} Rb5 {[%emt 0:00:10]} 41. Rd6 {[%emt 0:00:38]} Bf7 {[%emt 0:00:12]} 42. Be2 {[%emt 0:00:03]} Rb2 {[%emt 0:00:25]} 43. Ba6 {[%emt 0:00:59]} Kg7 {[%emt 0:00:09]} 44. Bb7 {[%emt 0:00:18]} Kf8 {[%emt 0:00:58]} 45. Bc6 {[%emt 0:00:19]} Rc2 {[%emt 0:01:34]} 46. Bb5 {[%emt 0:02:50]} Rb2 {[%emt 0:00:31]} 47. Bc6 {[%emt 0:03:49]} Rc2 {[%emt 0:00:03]} 48. Bb5 {[%emt 0:03:07]} 1/2-1/2

[Event "Chinese Championship-B Men 2024"]
[Site "Liaocheng"]
[Date "2024.04.24"]
[Round "8.7"]
[White "Jiang, Haochen"]
[Black "Xu, Ziyuan"]
[Result "1/2-1/2"]
[WhiteElo "2381"]
[BlackElo "1872"]
[PlyCount "94"]
[EventDate "2024.04.24"]
[EventType "swiss"]
[EventCountry "CHN"]
[TimeControl "5400+30"]

1. d4 {[%emt 0:00:01]} Nf6 {[%emt 0:00:17]} 2. c4 {[%emt 0:00:06]} g6 {[%emt 0:00:04]} 3. Nc3 {[%emt 0:00:04]} Bg7 {[%emt 0:00:05]} 4. e4 {[%emt 0:00:06]} O-O {[%emt 0:00:03]} 5. Nf3 {[%emt 0:00:07]} d6 {[%emt 0:00:04]} 6. Be2 {[%emt 0:00:05]} e5 {[%emt 0:00:11]} 7. O-O {[%emt 0:00:06]} exd4 {[%emt 0:02:41]} 8. Nxd4 {[%emt 0:01:34]} Re8 {[%emt 0:02:28]} 9. f3 {[%emt 0:00:10]} c6 {[%emt 0:00:02]} 10. Kh1 {[%emt 0:00:08]} Na6 {[%emt 0:00:06]} 11. Be3 {[%emt 0:06:33]} Nc7 {[%emt 0:02:01]} 12. Qd2 {[%emt 0:06:46]} d5 {[%emt 0:37:41]} 13. cxd5 {[%emt 0:02:20]} cxd5 {[%emt 0:02:11]} 14. Ndb5 {[%emt 0:01:50]} Nxb5 {[%emt 0:10:53]} 15. Bxb5 {[%emt 0:01:19]} Bd7 {[%emt 0:02:13]} 16. Bxd7 {[%emt 0:03:10]} Qxd7 {[%emt 0:00:03]} 17. exd5 {[%emt 0:02:47]} b5 {[%emt 0:04:26]} 18. Bd4 {[%emt 0:23:40]} Rac8 {[%emt 0:06:06]} 19. Rad1 {[%emt 0:05:45]} Rc4 {[%emt 0:02:30]} 20. b3 {[%emt 0:20:03]} Ne4 {[%emt 0:02:14]} 21. fxe4 {[%emt 0:13:19]} Rxd4 {[%emt 0:00:03]} 22. Qc2 {[%emt 0:03:16]} Rc8 {[%emt 0:00:20]} 23. Qf2 {[%emt 0:00:24]} Rb4 {[%emt 0:01:26]} 24. e5 {[%emt 0:08:51]} Bxe5 {[%emt 0:01:04]} 25. Ne2 {[%emt 0:00:00]} Rc2 {[%emt 0:08:59]} 26. Qe3 {[%emt 0:00:00]} Qd6 {[%emt 0:08:11]} 27. Nd4 {[%emt 0:00:00]} Bxd4 {[%emt 0:00:03]} 28. Rxd4 {[%emt 0:00:10]} Rxd4 {[%emt 0:00:42]} 29. Qxd4 {[%emt 0:00:02]} Qc5 {[%emt 0:00:26]} 30. Qd3 {[%emt 0:02:12]} Rc1 {[%emt 0:01:13]} 31. Rd1 {[%emt 0:00:23]} Qc3 {[%emt 0:00:11]} 32. Qf1 {[%emt 0:00:25]} Rxd1 {[%emt 0:02:17]} 33. Qxd1 {[%emt 0:01:18]} Kf8 {[%emt 0:00:26]} 34. d6 {[%emt 0:00:00]} Ke8 {[%emt 0:00:02]} 35. Qe2+ {[%emt 0:00:00]} Kf8 {[%emt 0:00:02]} 36. Qd1 {[%emt 0:00:47]} Ke8 {[%emt 0:00:04]} 37. Qe2+ {[%emt 0:00:09]} Kf8 {[%emt 0:00:01]} 38. Qe7+ {[%emt 0:00:42]} Kg7 {[%emt 0:00:01]} 39. h4 {[%emt 0:00:41]} Qc1+ {[%emt 0:02:26]} 40. Kh2 {[%emt 0:00:01]} Qf4+ {[%emt 0:00:04]} 41. Kh3 {[%emt 0:00:27]} Qf6 {[%emt 0:01:22]} 42. Kg3 {[%emt 0:00:40]} Qc3+ {[%emt 0:00:27]} 43. Kf2 {[%emt 0:00:45]} Qd2+ {[%emt 0:00:16]} 44. Kg1 {[%emt 0:00:15]} Qc1+ {[%emt 0:00:15]} 45. Kh2 {[%emt 0:00:21]} Qf4+ {[%emt 0:00:02]} 46. Kh3 {[%emt 0:00:02]} Qf6 {[%emt 0:00:05]} 47. Qxa7 {[%emt 0:01:11]} Qxd6 {[%emt 0:00:41]} 1/2-1/2